bitfinex/quotes_ETHUSD_20250905
["timestamp","ask_amount","ask_price","bid_price","bid_amount"]
[1757093957077,0.4826,4286.8,4286.7,2.33279679]
[1757093959595,0.4826,4286.8,4286.7,4.94767972]
[1757093960509,0.4826,4286.8,4286.7,2.61488293]
[1757093960675,0.4826,4286.8,4286.7,4.94767972]
[1757093961508,0.4826,4286.8,4286.7,2.33279679]
[1757093961672,0.0266,4286.8,4286.7,2.33279679]
[1757093962204,0.0266,4286.8,4286.7,4.94767972]
[1757093962508,0.0266,4286.8,4286.6,2.61488293]
[1757093962888,0.456,4286.7,4286.6,4.94773414]
[1757093963092,0.0032,4286.7,4286.6,4.94773414]
[1757093963710,0.4592,4286.7,4286.6,2.61488293]
[1757093964017,0.0032,4286.7,4286.6,4.94773414]
[1757093964384,0.025,4286.8,4286.7,2.33279679]
[1757093965110,0.025,4286.8,4286.6,4.9477077]
[1757093965111,0.0298,4286.8,4286.6,4.9477077]
[1757093965302,0.0298,4286.8,4286.6,2.61488293]
[1757093965303,0.456,4286.7,4286.6,2.61488293]
[1757093965543,0.6181,4286.7,4286.6,2.61488293]
[1757093965724,2.95089679,4286.7,4286.6,2.61488293]
[1757093966227,0.4623,4286.7,4286.6,2.61488293]
[1757093966986,0.025,4286.8,4286.6,2.61488293]
[1757093967202,0.025,4286.8,4286.7,3.09819679]
[1757093967511,0.025,4286.8,4286.7,5.24237972]
[1757093967883,0.025,4286.8,4286.7,5.71307972]
[1757093971124,0.0266,4286.8,4286.7,4.94767972]
[1757093971431,0.4826,4286.8,4286.7,4.94767972]
[1757093971591,0.0266,4286.8,4286.7,4.94767972]
[1757093972879,0.025,4286.8,4286.7,4.94767972]
[1757093973081,0.025,4286.8,4286.7,5.24237972]
[1757093973332,0.025,4286.8,4286.7,5.71307972]
[1757093974837,0.025,4286.8,4286.7,4.94767972]
[1757093975334,0.0266,4286.8,4286.7,4.94767972]
[1757093976122,0.025,4286.8,4286.7,4.94767972]
[1757093976526,0.025,4286.8,4286.7,5.24237972]
[1757093976820,0.025,4286.8,4286.7,11.38747342]
[1757093977505,0.001,4287.3,4286.7,11.38747342]
[1757093977506,0.001,4287.3,4287.2,2.33252472]
[1757093977694,0.001,4287.3,4287.2,4.78074387]
[1757093980032,0.0026,4287.3,4287.2,2.44821915]
[1757093980231,0.0026,4287.3,4287.2,4.78074387]
[1757093980796,0.0026,4287.3,4287.2,2.44821915]
[1757093981220,0.0026,4287.3,4287.2,4.78074387]
[1757093982428,0.001,4287.3,4287.2,5.07064387]
[1757093982629,0.001,4287.3,4287.2,6.65987]
[1757093982830,0.001,4287.3,4287.2,7.15637]
[1757093983002,0.001,4287.3,4287.2,7.27237]
[1757093983410,0.001,4287.3,4287.2,6.33577]
[1757093983731,0.001,4287.3,4287.2,4.78074387]
[1757093983732,0.0026,4287.3,4287.2,4.78074387]
[1757093984745,0.0026,4287.3,4287.2,2.44821915]
[1757093984746,0.4583,4287.3,4287.2,2.44821915]
[1757093984949,0.6187,4287.3,4287.2,2.44821915]
[1757093985148,0.6187,4287.3,4286.5,3.966]
[1757093985149,0.6187,4287.3,4286.6,2.44821915]
[1757093985320,0.4557,4287.2,4286.6,2.44821915]
[1757093985644,0.4557,4287.2,4286.6,4.78106339]
[1757093985645,0.0032,4286.7,4286.6,4.78106339]
[1757093985817,0.4589,4286.7,4286.6,2.44821915]
[1757093986237,0.5749,4286.7,4286.6,2.44821915]
[1757093987726,3.968,4287.2,4286.6,3.67471915]
[1757093988056,0.001,4287.3,4287.1,2.33257342]
[1757093988549,0.001,4287.3,4286.9,2.33264745]
[1757093988745,0.001,4287.3,4286.8,2.3327418]
[1757093988959,2.3334974,4287.3,4286.7,2.88888393]
[1757093989132,0.001,4287.3,4286.9,2.33267358]
[1757093989463,0.001,4287.3,4287.0,2.44821915]
[1757093990946,0.001,4287.3,4287.1,2.33257913]
[1757093991127,0.001,4287.3,4287.0,5.22092497]
[1757093991447,0.001,4287.3,4287.0,2.44821915]
[1757093991756,0.001,4287.3,4287.1,2.33257486]
[1757093991968,0.001,4287.3,4287.2,2.62242472]
[1757093992256,0.001,4287.3,4287.2,3.06252472]
[1757093992639,0.001,4287.3,4287.2,0.73]
[1757093992821,0.0026,4287.3,4287.0,4.78081462]
[1757093993447,0.0026,4287.3,4287.0,4.78083231]
[1757093993927,0.0026,4287.3,4287.0,2.44821915]
[1757093994145,0.0026,4287.3,4287.0,4.78082434]
[1757093994950,0.001,4287.3,4287.0,4.78082434]
[1757093995156,0.001,4287.3,4287.1,2.44821915]
[1757093998147,0.0016,4287.2,4287.1,2.44821915]
[1757093998874,3.82506804,4287.2,4287.1,2.44821915]
[1757093999030,3.66466804,4287.2,4287.1,2.44821915]
[1757094001324,1.33214332,4287.2,4287.1,2.44821915]
[1757094001540,0.87644332,4287.2,4287.1,2.44821915]
[1757094001738,0.001,4287.3,4287.1,3.17821915]
[1757094001956,3.958,4287.2,4287.1,3.17821915]
[1757094002348,0.117,4287.3,4287.1,3.67471915]
[1757094002660,0.001,4287.3,4287.2,5.71734387]
[1757094003026,0.001,4287.3,4287.2,6.00724387]
[1757094003228,0.001,4287.3,4287.2,7.55822617]
[1757094005334,0.001,4287.3,4287.2,7.06172617]
[1757094005861,0.001,4287.3,4287.2,7.55822617]
[1757094008063,0.001,4287.3,4287.2,6.62162617]
[1757094008231,0.163,4287.3,4287.2,2.44821915]
[1757094008434,0.6187,4287.3,4287.2,2.44821915]
[1757094008629,6.91717031,4287.3,4287.0,2.44821915]
[1757094008862,0.4557,4287.2,4287.0,2.44821915]
[1757094009162,3.9686,4287.3,4287.1,2.44821915]
[1757094009362,6.46147997,4287.3,4287.1,2.44821915]
[1757094009665,0.4971,4287.2,4287.1,2.44821915]
[1757094010367,0.0016,4287.2,4287.1,2.44821915]
[1757094012235,3.20182472,4287.2,4287.1,2.44821915]
[1757094012636,3.967,4287.3,4287.1,2.44821915]
[1757094012835,0.117,4287.3,4287.2,2.33252472]
[1757094013039,0.001,4287.3,4287.2,6.03334387]
[1757094013263,0.001,4287.3,4287.2,5.56424387]
[1757094014153,0.001,4287.3,4287.2,6.03334387]
[1757094014455,0.001,4287.3,4287.2,5.56424387]
[1757094014629,0.001,4287.3,4287.2,3.23171915]
[1757094014833,0.001,4287.3,4287.2,5.56424387]
[1757094015654,0.001,4287.3,4287.2,5.09194387]
[1757094016135,0.001,4287.3,4287.2,5.56424387]
[1757094017639,0.001,4287.3,4287.2,6.88153689]
[1757094019567,0.001,4287.3,4287.2,4.54901217]
[1757094019868,0.001,4287.3,4287.2,2.75941915]
[1757094021265,0.001,4287.3,4287.2,3.23171915]
[1757094023056,0.001,4287.3,4287.2,3.70081915]
[1757094023293,0.001,4287.3,4287.2,6.14934387]
[1757094024370,0.001,4287.3,4287.2,3.81681915]
[1757094024577,0.2863,4287.3,4287.2,2.56421915]
[1757094024871,7.39203232,4287.3,4286.8,0.004]
[1757094025074,0.4955,4287.2,4286.8,0.004]
[1757094025269,2.82806376,4287.2,4286.8,0.004]
[1757094025476,0.2843,4286.9,4286.8,0.004]
[1757094025774,4.4585,4287.1,4286.8,0.004]
[1757094025947,0.001,4287.3,4286.8,0.7875]
[1757094026153,3.963,4287.2,4286.9,0.4723]
[1757094027545,3.963,4287.2,4286.8,0.004]
[1757094028188,4.4585,4287.2,4286.8,0.004]
[1757094028853,0.2843,4286.9,4286.8,0.004]
[1757094029172,2.61698795,4286.9,4286.8,0.004]
[1757094029472,3.11248795,4286.9,4286.8,0.004]
[1757094030371,2.61698795,4286.9,4286.8,0.004]
[1757094030962,3.96,4286.9,4286.8,0.3152]
[1757094031347,6.29268795,4286.9,4286.8,0.3152]
[1757094031547,3.96,4286.9,4286.8,0.004]
[1757094032348,6.29268795,4286.9,4286.8,0.004]
[1757094032566,3.96,4286.9,4286.8,0.004]
[1757094033580,3.959,4287.2,4286.8,3.58934237]
[1757094033778,3.959,4287.2,4286.9,0.4723]
[1757094034276,6.29152888,4287.2,4286.8,0.004]
[1757094034860,3.959,4287.2,4286.8,0.004]
[1757094035065,3.959,4287.2,4286.8,0.4763]
[1757094035260,3.959,4287.2,4286.8,2.80903241]
[1757094035463,3.959,4287.2,4287.1,0.3112]
[1757094035675,3.959,4287.2,4287.1,0.7835]
[1757094035878,0.001,4287.3,4287.2,2.33252472]
[1757094036188,2.38321214,4287.8,4287.2,2.33252472]
[1757094036189,0.051,4287.8,4287.7,2.33225272]
[1757094036386,0.051,4287.8,4287.7,6.03207187]
[1757094038190,0.001,4287.8,4287.7,6.03207187]
[1757094041072,0.001,4287.8,4287.7,2.75841915]
[1757094041272,0.001,4287.8,4287.7,5.09067187]
[1757094041492,0.001,4287.8,4287.7,6.70587058]
[1757094042273,0.001,4287.8,4287.7,3.90791786]
[1757094042478,0.1,4287.8,4287.7,2.44721915]
[1757094042798,13.83753065,4287.8,4287.7,2.44721915]
[1757094043168,13.46803065,4287.8,4287.7,2.44721915]
[1757094043988,13.83753065,4287.8,4287.7,2.44721915]
[1757094044296,2.33252472,4287.2,4287.1,2.44721915]
[1757094044498,6.85982472,4287.2,4287.1,2.44721915]
[1757094045077,4.0577,4287.2,4287.1,2.44721915]
[1757094045779,6.85982472,4287.2,4287.1,2.44721915]
[1757094046996,2.90382472,4287.2,4287.1,2.44721915]
[1757094047164,3.956,4287.2,4287.1,2.74461915]
[1757094047367,0.001,4287.8,4287.2,2.33252472]
[1757094047579,3.956,4287.7,4287.3,2.79816883]
[1757094047773,3.956,4287.7,4287.4,2.79810687]
[1757094047974,3.956,4287.7,4287.1,2.92011915]
[1757094048200,0.001,4287.8,4287.6,0.2974]
[1757094048402,0.001,4287.8,4287.7,4.77947187]
[1757094048703,0.001,4287.8,4287.7,5.71807187]
[1757094048879,0.001,4287.8,4287.7,6.01547187]
[1757094051396,0.001,4287.8,4287.7,5.07687187]
[1757094051602,0.001,4287.8,4287.7,6.74918554]
[1757094052598,0.001,4287.8,4287.7,7.22208554]
[1757094052800,0.001,4287.8,4287.7,7.33808554]
[1757094054593,0.001,4288.2,4287.9,2.44621915]
[1757094054801,0.001,4288.2,4288.1,2.33203516]
[1757094055305,0.001,4288.2,4288.1,2.62943516]
[1757094056092,0.001,4288.2,4288.1,3.09513516]
[1757094056604,0.001,4288.2,4288.1,2.33203516]
[1757094056814,0.1,4288.2,4288.0,2.44621915]
[1757094056979,0.1,4288.2,4288.0,4.77827385]
[1757094057178,0.001,4288.2,4288.1,2.33203516]
[1757094057410,0.001,4288.2,4288.0,4.77828967]
[1757094057709,0.001,4288.2,4288.1,2.33203516]
[1757094058006,0.001,4288.2,4288.1,3.09513516]
[1757094058219,0.001,4288.2,4288.1,2.33203516]
[1757094058415,0.001,4288.2,4288.1,2.62943516]
[1757094058580,0.001,4288.2,4288.1,6.52622625]
[1757094059822,0.001,4288.2,4288.1,6.06052625]
[1757094060383,0.001,4288.2,4288.1,6.52622625]
[1757094061208,0.001,4288.2,4288.1,5.54135431]
[1757094061617,0.001,4288.2,4288.1,5.65735431]
[1757094062496,0.1,4288.2,4288.1,2.56221915]
[1757094062721,0.1,4288.2,4288.1,2.44621915]
[1757094062722,2.90158078,4288.2,4288.1,2.44621915]
[1757094062922,3.38708078,4288.2,4288.1,2.44621915]
[1757094063087,0.6856,4288.2,4288.1,2.44621915]
[1757094064418,4.6406,4288.2,4288.1,2.44621915]
[1757094064721,4.072,4288.2,4288.1,2.44621915]
[1757094064924,4.171,4288.2,4288.1,2.44621915]
[1757094066091,4.6406,4288.2,4288.1,2.44621915]
[1757094067194,6.97258078,4288.2,4288.1,2.44621915]
[1757094067525,7.34208078,4288.2,4288.1,2.44621915]
[1757094069591,0.001,4288.2,4288.1,5.07285431]
[1757094069927,0.001,4288.2,4288.1,5.53445431]
[1757094070099,0.001,4288.2,4288.1,5.55747434]
[1757094070293,0.001,4288.2,4288.1,5.07285431]
[1757094070610,6.71023232,4288.2,4288.1,2.44621915]
[1757094070791,0.1,4288.2,4288.1,4.77825431]
[1757094071215,4.055,4288.2,4288.1,2.44621915]
[1757094072795,4.055,4288.2,4288.1,4.77825431]
[1757094073022,4.055,4288.2,4288.1,2.44621915]
[1757094073631,4.055,4288.2,4288.1,4.77825431]
[1757094073828,4.055,4288.2,4288.1,2.44621915]
[1757094074694,22.12103464,4288.2,4287.1,0.004]
[1757094074919,22.12103464,4288.2,4287.1,2.33654328]
[1757094075126,2.33228881,4287.7,4287.1,0.004]
[1757094075327,3.955,4287.6,4287.1,2.33655759]
[1757094075527,0.3019,4287.2,4287.1,0.004]
[1757094075830,4.2569,4287.2,4287.1,2.33654046]
[1757094076191,4.2569,4287.2,4287.1,0.004]
[1757094077303,4.7335,4287.2,4287.1,0.004]
[1757094078347,7.70797472,4287.2,4287.1,0.004]
[1757094080601,5.20685,4287.2,4287.1,0.004]
[1757094081334,7.53937472,4287.2,4287.1,0.004]
[1757094082034,5.20685,4287.2,4287.1,0.004]
[1757094083015,1.718,4287.7,4287.1,1.2166]
[1757094083226,4.071,4287.6,4287.4,2.33238439]
[1757094083415,4.071,4287.6,4287.5,3.08856151]
[1757094084099,0.116,4287.6,4287.5,3.08856151]
[1757094084313,1.718,4287.7,4287.6,2.33230711]
[1757094084538,1.718,4287.7,4287.6,2.62690711]
[1757094084539,5.673,4287.7,4287.6,2.62690711]
[1757094084702,5.673,4287.7,4287.6,3.54490711]
[1757094084898,1.718,4287.7,4287.6,3.54490711]
[1757094085231,0.116,4287.8,4287.6,3.54490711]
[1757094085232,3.18,4288.0,4287.9,2.33214393]
[1757094085433,3.18,4288.0,4287.9,3.54474393]
[1757094086409,0.001,4288.2,4288.1,2.33203516]
[1757094086809,0.001,4288.2,4288.1,3.66063516]
[1757094087138,0.001,4288.2,4287.9,2.33214393]
[1757094087139,0.001,4288.2,4287.9,0.116]
[1757094087435,0.001,4288.2,4287.3,1.16257635]
[1757094087436,0.3019,4288.0,4287.3,1.16257635]
[1757094087632,0.116,4287.8,4287.2,0.918]
[1757094088136,0.116,4287.8,4287.4,2.33236973]
[1757094088348,0.116,4287.8,4287.3,2.33246209]
[1757094088554,0.116,4287.8,4287.3,2.33247031]
[1757094088700,0.116,4287.8,4287.6,2.3323001]
[1757094088900,0.116,4287.8,4287.7,0.2946]
[1757094089504,0.116,4287.8,4287.4,3.25038744]
[1757094089505,0.116,4287.8,4287.4,2.79398744]
[1757094089938,0.116,4287.8,4287.4,2.79399406]
[1757094090306,0.116,4287.8,4287.4,2.79399545]
[1757094090505,0.116,4287.8,4287.7,0.2946]
[1757094090740,0.116,4287.8,4287.5,0.4616]
[1757094090933,0.215,4287.8,4287.2,2.33251302]
[1757094091119,2.33225431,4287.7,4287.2,2.33251302]
[1757094091320,0.116,4287.8,4287.3,2.3324626]
[1757094091619,2.448225,4287.8,4287.2,2.79411522]
[1757094091815,0.116,4287.8,4287.2,0.4616]
[1757094092219,0.116,4287.8,4287.7,0.2946]
[1757094092421,0.116,4287.8,4287.7,0.7562]
[1757094092809,0.116,4287.8,4287.3,0.4616]
[1757094093010,0.215,4287.8,4287.3,0.4616]
[1757094093316,0.116,4287.5,4287.3,2.33246206]
[1757094093519,3.955,4287.4,4287.3,2.33246206]
[1757094093843,3.955,4287.4,4287.3,0.2946]
[1757094094137,3.955,4287.4,4287.3,0.7562]
[1757094095045,3.955,4287.4,4287.3,3.08867031]
[1757094095926,3.955,4287.4,4287.3,0.2946]
[1757094096310,3.955,4287.4,4287.3,3.08867031]
[1757094096964,3.955,4287.4,4287.3,0.7562]
[1757094097164,3.955,4287.4,4287.1,0.004]
[1757094097165,4.054,4287.4,4287.1,0.004]
[1757094097580,0.116,4287.2,4287.1,0.004]
[1757094097783,0.116,4287.2,4287.1,2.45021915]
[1757094097990,0.116,4287.2,4287.1,5.07739828]
[1757094098202,0.116,4287.2,4287.1,2.45021915]
[1757094098689,0.116,4287.2,4287.1,2.74481915]
[1757094098844,0.116,4287.2,4287.1,0.2986]
[1757094099342,0.116,4287.2,4287.1,2.63117913]
[1757094099544,0.116,4287.2,4287.1,0.2986]
[1757094100379,0.116,4287.2,4287.1,0.004]
[1757094100539,3.64336838,4287.2,4287.1,0.004]
[1757094102543,4.01016838,4287.2,4287.1,0.004]
[1757094103691,3.64336838,4287.2,4287.1,0.004]
[1757094105293,0.116,4287.2,4287.1,0.7423]
[1757094105484,6.28752472,4287.2,4287.1,0.7423]
[1757094106098,6.28752472,4287.2,4287.1,0.307]
[1757094106302,6.28752472,4287.2,4287.1,0.004]
[1757094106801,7.70131972,4287.2,4287.1,0.004]
[1757094108874,3.74631972,4287.2,4287.1,0.004]
[1757094109114,7.24851972,4287.2,4287.1,0.004]
[1757094109268,7.14951972,4287.2,4287.1,0.004]
[1757094109472,6.28752472,4287.2,4287.1,0.307]
[1757094109774,6.28752472,4287.2,4287.1,0.7423]
[1757094109969,2.33252472,4287.2,4287.1,0.307]
[1757094110202,6.28752472,4287.2,4287.1,0.7423]
[1757094110403,1.718,4287.7,4287.1,1.2094]
[1757094110604,0.116,4287.4,4287.2,0.9024]
[1757094110772,3.955,4287.3,4287.2,0.9024]
[1757094110977,3.955,4287.3,4287.2,1.2054]
[1757094111873,3.955,4287.3,4287.2,3.65161915]
[1757094112980,3.955,4287.3,4287.2,2.74921915]
[1757094113489,3.955,4287.3,4287.2,3.18451915]
[1757094115312,3.955,4287.3,4287.2,6.58336903]
[1757094115678,0.116,4287.4,4287.3,2.33247031]
[1757094115900,2.665,4287.5,4287.4,2.33241591]
[1757094116136,2.665,4287.5,4287.4,3.53781591]
[1757094117219,0.117,4287.8,4287.6,2.33225577]
[1757094117423,4.071,4287.8,4287.6,0.58700717]
[1757094117620,4.071,4287.8,4287.6,0.4353]
[1757094117825,4.071,4287.8,4287.6,2.76760526]
[1757094117999,4.071,4287.8,4287.7,0.303]
[1757094118203,4.071,4287.8,4287.7,0.7383]
[1757094118403,4.071,4287.8,4287.7,3.07055272]
[1757094118603,4.071,4287.8,4287.7,0.7383]
[1757094119204,4.071,4287.8,4287.7,0.303]
[1757094119406,4.071,4287.8,4287.4,2.76769013]
[1757094119723,4.071,4287.8,4287.5,5.21387718]
[1757094119913,4.071,4287.8,4287.6,2.33230258]
[1757094120110,4.071,4287.8,4287.5,2.88151915]
[1757094120438,2.63900711,4287.6,4287.5,2.44621915]
[1757094120636,3.09180711,4287.6,4287.5,2.44621915]
[1757094121016,2.63900711,4287.6,4287.5,2.44621915]
[1757094121655,3.09180711,4287.6,4287.5,2.44621915]
[1757094121867,0.116,4287.5,4287.1,0.004]
[1757094122153,2.33252472,4287.2,4287.1,0.004]
[1757094122322,2.82835856,4287.2,4287.1,0.004]
[1757094122518,3.28115856,4287.2,4287.1,0.004]
[1757094122752,3.44645856,4287.2,4287.1,0.004]
[1757094122938,7.39945856,4287.2,4287.1,0.004]
[1757094123513,10.39945856,4287.2,4287.1,0.004]
[1757094124251,11.19145856,4287.2,4287.1,0.004]
[1757094127576,2.33296005,4286.4,4286.3,0.004]
[1757094127721,25.34968482,4286.4,4286.3,0.004]
[1757094127917,26.27308482,4286.4,4286.3,0.004]
[1757094128382,26.27308482,4286.4,4286.3,1e-08]
[1757094128788,3.12517778,4286.0,4285.9,0.004]
[1757094128941,7.26981162,4286.0,4285.9,0.004]
[1757094129141,8.19311162,4286.0,4285.9,0.004]
[1757094132207,11.19311162,4286.0,4285.9,1e-08]
[1757094132367,11.45387854,4286.0,4285.9,1e-08]
[1757094132695,6.12534111,4285.7,4285.6,1e-08]
[1757094132896,23.63027061,4285.7,4285.6,1e-08]
[1757094133062,24.41037061,4285.7,4285.6,1e-08]
[1757094133467,24.57997061,4285.7,4285.6,1e-08]
[1757094133762,24.57985491,4285.7,4285.6,1e-08]
[1757094134800,2.33355891,4285.3,4285.2,1e-08]
[1757094135096,14.85128178,4285.3,4285.2,1e-08]
[1757094135300,2.33432152,4283.9,4283.8,0.025]
[1757094135599,8.47417939,4283.9,4283.8,0.025]
[1757094135932,11.10632152,4283.9,4283.8,1e-08]
[1757094136145,12.37752152,4283.9,4283.8,1e-08]
[1757094136323,12.74702152,4283.9,4283.8,1e-08]
[1757094136633,12.37752152,4283.9,4283.8,1e-08]
[1757094136783,7.84532152,4283.9,4283.8,1e-08]
[1757094136987,11.89832152,4283.9,4283.8,1e-08]
[1757094137284,12.74702152,4283.9,4283.8,1e-08]
[1757094137592,8.42352152,4283.9,4283.8,1e-08]
[1757094137903,12.60738465,4283.9,4283.8,1e-08]
[1757094138086,8.65238465,4283.9,4283.8,1e-08]
[1757094138282,13.16581509,4283.9,4283.8,1e-08]
[1757094138499,12.79631509,4283.9,4283.8,1e-08]
[1757094138715,13.16581509,4283.9,4283.8,1e-08]
[1757094139085,12.93695196,4283.9,4283.8,1e-08]
[1757094139285,12.74802152,4283.9,4283.8,1e-08]
[1757094139929,12.37852152,4283.9,4283.8,1e-08]
[1757094140085,12.57705491,4283.9,4283.8,1e-08]
[1757094140287,12.09785491,4283.9,4283.8,1e-08]
[1757094140800,12.57705491,4283.9,4283.8,1e-08]
[1757094140984,12.37852152,4283.9,4283.8,1e-08]
[1757094141494,29.42811638,4283.9,4283.8,1e-08]
[1757094142086,28.84991638,4283.9,4283.8,1e-08]
[1757094142310,28.94891638,4283.9,4283.8,1e-08]
[1757094143180,28.84991638,4283.9,4283.8,1e-08]
[1757094143914,24.89491638,4283.9,4283.8,0.74220001]
[1757094144088,28.84991638,4283.9,4283.8,0.74220001]
[1757094144412,25.84991638,4283.9,4283.8,0.74220001]
[1757094144924,28.84991638,4283.9,4283.8,0.74220001]
[1757094145942,28.84991638,4283.9,4283.8,0.29760001]
[1757094146094,28.84991638,4283.9,4283.8,1e-08]
[1757094146294,28.84991638,4283.9,4283.8,0.74220001]
[1757094147391,28.05791638,4283.9,4283.8,0.74220001]
[1757094147695,28.05791638,4283.9,4283.8,0.29760001]
[1757094147894,28.05791638,4283.9,4283.8,0.74220001]
[1757094148435,7.2446967,4283.9,4283.8,1.24220001]
[1757094148729,11.2006967,4283.9,4283.8,1.24220001]
[1757094149028,11.2006967,4283.9,4283.8,0.29760001]
[1757094149795,11.2006967,4283.9,4283.8,1.24220001]
[1757094149994,11.2006967,4283.9,4283.8,0.29760001]
[1757094151303,11.2006967,4283.9,4283.8,0.30160001]
[1757094151628,11.40541227,4283.9,4283.8,0.74620001]
[1757094151825,11.40541227,4283.9,4283.8,1.24620001]
[1757094152553,12.29641227,4283.9,4283.8,0.00400001]
[1757094152842,13.14511227,4283.9,4283.8,1e-08]
[1757094153045,12.77561227,4283.9,4283.8,1e-08]
[1757094154524,13.14511227,4283.9,4283.8,1e-08]
[1757094155528,3.12653951,4283.5,4283.3,1e-08]
[1757094155724,32.52252926,4283.4,4283.3,1e-08]
[1757094155926,33.30262926,4283.4,4283.3,1e-08]
[1757094156226,33.46054675,4283.4,4283.3,1e-08]
[1757094156800,0.792,4282.9,4282.8,0.025]
[1757094156994,10.28758213,4282.9,4282.1,0.2196]
[1757094157226,2.33524823,4282.2,4282.1,0.2196]
[1757094157428,8.2159638,4282.2,4282.1,0.2196]
[1757094157600,8.2159638,4282.2,4282.1,1.0172]
[1757094158525,8.2159638,4282.2,4282.1,0.2976]
[1757094159227,8.2159638,4282.2,4282.1,0.7715]
[1757094159429,8.2159638,4282.2,4282.1,0.2976]
[1757094159610,11.2159638,4282.2,4282.1,0.2976]
[1757094159808,11.2159638,4282.2,4282.1,0.7715]
[1757094160338,3.0,4282.1,4281.8,0.025]
[1757094160631,6.12741184,4281.9,4281.8,0.025]
[1757094160832,6.59152741,4281.9,4281.8,0.025]
[1757094161006,7.05052741,4281.9,4281.8,1e-08]
[1757094161211,3.0,4281.0,4280.7,0.4739]
[1757094161417,11.21767296,4280.9,4280.7,0.4739]
[1757094161627,11.21767296,4280.9,4280.5,0.4638]
[1757094161830,11.21767296,4280.9,4280.8,0.3239]
[1757094162135,11.21767296,4280.9,4280.8,0.7978]
[1757094162313,5.88171557,4280.9,4280.8,1.2616]
[1757094162634,8.21767296,4280.9,4280.8,1.2616]
[1757094162798,5.88171557,4280.9,4280.8,1.2616]
[1757094163130,8.21767296,4280.9,4280.8,1.2616]
[1757094163330,8.21767296,4280.9,4280.8,0.7877]
[1757094163331,8.01295739,4280.9,4280.8,0.7877]
[1757094163523,8.01295739,4280.9,4280.8,0.7978]
[1757094163719,8.01295739,4280.9,4280.8,1.2616]
[1757094164235,8.01295739,4280.9,4280.8,0.3239]
[1757094164406,8.20328299,4280.9,4280.8,0.3239]
[1757094164802,1.9113256,4280.9,4280.8,1.2616]
[1757094165009,8.01295739,4280.9,4280.8,1.2616]
[1757094165233,1.721,4280.9,4280.8,1.2616]
[1757094165402,5.677,4280.9,4280.8,1.2616]
[1757094166045,1.721,4280.9,4280.8,3.59761196]
[1757094166247,5.677,4280.9,4280.8,1.2616]
[1757094169358,8.01295739,4280.9,4280.8,1.2616]
[1757094169656,8.01295739,4280.9,4280.8,0.025]
[1757094170057,8.01295739,4280.9,4280.8,0.7978]
[1757094170458,8.26925739,4280.9,4280.8,0.029]
[1757094170657,8.46113889,4280.9,4280.8,0.029]
[1757094170956,11.92013889,4280.9,4280.8,0.029]
[1757094171563,11.20303889,4280.9,4280.8,0.3279]
[1757094171943,11.20303889,4280.9,4280.8,0.029]
[1757094172441,11.45933889,4280.9,4280.8,0.029]
[1757094172842,11.91833889,4280.9,4280.8,0.029]
[1757094173353,11.20403889,4280.9,4280.8,0.029]
[1757094173548,4.24703889,4280.9,4280.8,0.3279]
[1757094173861,4.24703889,4280.9,4280.8,0.8018]
[1757094173862,8.01395739,4280.9,4280.8,0.8018]
[1757094175128,4.05695739,4280.9,4280.8,1.2656]
[1757094175329,8.01395739,4280.9,4280.8,1.2656]
[1757094175746,8.01395739,4280.9,4280.8,0.8018]
[1757094175976,8.01395739,4280.9,4280.8,1.2656]
[1757094178660,8.01395739,4280.9,4280.8,0.8018]
[1757094179055,8.01395739,4280.9,4280.8,0.3279]
[1757094179364,8.31435739,4280.9,4280.8,0.029]
[1757094179565,9.3563363,4280.9,4280.8,0.029]
[1757094179750,8.9634363,4280.9,4280.8,0.029]
[1757094180067,8.5044363,4280.9,4280.8,0.029]
[1757094180738,13.1483363,4280.9,4280.8,0.029]
[1757094180942,13.1483363,4280.9,4280.3,0.004]
[1757094180943,0.792,4280.7,4280.3,0.004]
[1757094181279,22.98644993,4280.4,4280.3,0.004]
[1757094181479,6.42863025,4280.4,4280.3,0.004]
[1757094181643,11.76701084,4280.4,4280.3,0.004]
[1757094181843,11.30801084,4280.4,4280.3,0.004]
[1757094182082,11.30801084,4280.4,4279.9,0.004]
[1757094182083,6.12844859,4280.0,4279.9,0.004]
[1757094182253,26.94366827,4280.0,4279.9,0.004]
[1757094182443,28.09596827,4280.0,4279.9,0.004]
[1757094182644,9.29344859,4280.0,4279.9,0.004]
[1757094182853,9.59384859,4280.0,4279.9,0.004]
[1757094183070,9.29344859,4280.0,4279.9,0.004]
[1757094183290,27.24406827,4280.0,4279.9,0.004]
[1757094183572,26.45206827,4280.0,4279.9,0.004]
[1757094184154,5.33644859,4280.0,4279.9,0.3029]
[1757094184475,0.11440798,4280.4,4279.9,1.2406]
[1757094184771,3.957,4280.3,4279.9,0.3029]
[1757094184974,2.33644859,4280.0,4279.9,0.7768]
[1757094185173,2.45064313,4280.4,4280.0,0.9377]
[1757094185357,2.33633942,4280.2,4279.9,0.004]
[1757094185559,5.63684859,4280.0,4279.9,0.004]
[1757094186073,5.63684859,4280.0,4279.9,1.2406]
[1757094186074,3.957,4280.0,4279.9,1.2406]
[1757094186294,0.11440798,4280.4,4279.9,1.2406]
[1757094186600,0.11440798,4280.4,4280.0,3.27411389]
[1757094186751,0.11440798,4280.4,4280.0,0.9377]
[1757094186752,3.957,4280.3,4280.0,0.9377]
[1757094186944,3.957,4280.3,4280.2,0.2989]
[1757094187147,2.33644859,4280.0,4279.9,0.004]
[1757094187451,9.29344859,4280.0,4279.9,0.004]
[1757094187762,9.29344859,4280.0,4279.9,0.3029]
[1757094187763,5.33644859,4280.0,4279.9,0.3029]
[1757094187971,9.29344859,4280.0,4279.9,1.2406]